bitfinex/quotes_SOLUSD_20240726
["timestamp","ask_amount","ask_price","bid_price","bid_amount"]
[1722009579160,16.055,182.01,181.95,5.496]
[1722009579577,16.055,182.01,181.9,1.09896906]
[1722009579778,21.5492,182.01,181.94,5.4962]
[1722009580078,5.4946,182.0,181.92,5.4966]
[1722009580278,5.4946,182.0,181.93,0.17]
[1722009580464,5.4946,182.0,181.93,5.6664]
[1722009580979,6.86864578,181.99,181.91,0.17]
[1722009581199,1.37388082,181.99,181.88,3.3270281]
[1722009581364,5.4951,181.98,181.91,5.497]
[1722009581566,5.4951,181.98,181.89,0.34]
[1722009581884,5.4951,181.98,181.9,1.09912914]
[1722009582188,5.4945,182.0,181.93,5.4966]
[1722009582760,16.055,182.01,181.91,5.4969]
[1722009582969,5.495,181.99,181.91,5.497]
[1722009583184,5.495,181.99,181.92,5.4968]
[1722009583572,5.4945,182.0,181.93,5.4965]
[1722009584378,21.5492,182.01,181.94,5.4963]
[1722009584583,21.5492,182.01,181.95,1.09903494]
[1722009585679,5.4951,181.98,181.91,5.4971]
[1722009586074,16.055,182.01,181.89,0.34]
[1722009586075,5.4955,181.97,181.9,5.4975]
[1722009586279,21.4891,181.95,181.84,1.09912988]
[1722009586581,5.4964,181.94,181.87,5.4984]
[1722009586881,21.4891,181.95,181.83,15.2033]
[1722009587082,20.0,181.94,181.86,5.4987]
[1722009588062,5.4966,181.93,181.86,5.4987]
[1722009588966,5.4969,181.92,181.85,5.499]
[1722009589268,5.4966,181.93,181.86,5.4987]
[1722009590065,5.4966,181.93,181.87,1.09952995]
[1722009590372,21.4891,181.95,181.87,6.59782995]
[1722009590589,20.0,181.94,181.87,6.59782995]
[1722009590769,20.0,181.94,181.88,1.09948653]
[1722009591095,25.4965,181.94,181.88,1.09948653]
[1722009591305,5.4966,181.93,181.88,1.09948653]
[1722009591666,5.4966,181.93,181.87,1.09948729]
[1722009594193,5.4966,181.93,181.86,5.4987]
[1722009594690,5.497,181.92,181.85,5.499]
[1722009595489,5.497,181.92,181.86,1.09949015]
[1722009595869,5.4966,181.93,181.86,6.59809015]
[1722009596069,5.4966,181.93,181.87,1.09949086]
[1722009596583,5.4969,181.92,181.87,1.09949086]
[1722009596787,5.4969,181.92,181.85,5.4989]
[1722009597471,6.87156627,181.91,181.84,5.4992]
[1722009597978,5.4972,181.91,181.84,5.4992]
[1722009598487,5.4972,181.91,181.85,6.5985923]
[1722009598674,5.4969,181.92,181.85,5.499]
[1722009598873,5.4969,181.92,181.86,1.09959591]
[1722009599572,5.4969,181.92,181.85,5.499]
[1722009599968,20.0,181.94,181.8,3.32262067]
[1722009599969,5.4982,181.88,181.8,3.32262067]
[1722009600169,13.742,181.93,181.79,1.09950868]
[1722009600389,20.0,181.92,181.79,2.19585523]
[1722009600800,5.4977,181.9,181.83,5.4996]
[1722009602286,5.4979,181.89,181.83,5.4996]
[1722009602880,5.4969,181.92,181.85,5.4989]
[1722009603189,5.497,181.92,181.86,1.09968876]
[1722009603386,15.4766,181.95,181.86,6.59838876]
[1722009603587,5.4969,181.92,181.84,17.64735212]
[1722009603780,15.4766,181.95,181.87,5.4984]
[1722009604185,5.4963,181.94,181.87,5.4984]
[1722009604573,5.4963,181.94,181.88,1.09944837]
[1722009604774,15.4766,181.95,181.87,1.09946514]
[1722009604973,15.4766,181.95,181.89,1.09946514]
[1722009605183,15.4766,181.95,181.85,1.26936753]
[1722009605379,15.4766,181.95,181.86,0.17]
[1722009605674,15.4766,181.95,181.9,5.4975]
[1722009605867,15.4766,181.95,181.9,5.4974]
[1722009606781,15.4766,181.95,181.89,5.4978]
[1722009607489,15.4766,181.95,181.9,5.4973]
[1722009607992,15.4766,181.95,181.91,1.09929456]
[1722009608191,15.4766,181.95,181.89,5.4977]
[1722009608504,15.4766,181.95,181.9,5.4974]
[1722009608675,15.4766,181.95,181.91,5.4971]
[1722009608873,15.4766,181.95,181.9,5.4974]
[1722009610610,15.4766,181.95,181.86,0.17]
[1722009610786,5.4965,181.94,181.87,5.4981]
[1722009610981,15.4766,181.95,181.91,5.497]
[1722009611199,6.373,181.99,181.93,5.4965]
[1722009611410,6.373,181.99,181.92,5.4968]
[1722009611411,20.0,181.98,181.92,5.4968]
[1722009611993,25.4951,181.98,181.92,5.4968]
[1722009612278,5.4954,181.97,181.91,5.4971]
[1722009612480,5.4954,181.97,181.9,5.4974]
[1722009612679,5.496,181.95,181.88,6.59698685]
[1722009613683,5.496,181.95,181.89,1.099348]
[1722009613882,5.496,181.95,181.9,1.09934817]
[1722009614291,20.0,181.98,181.9,1.09934817]
[1722009614680,20.0,181.98,181.85,47.33299404]
[1722009614681,25.4951,181.98,181.89,0.17]
[1722009614885,5.4962,181.95,181.88,5.4979]
[1722009615091,5.4962,181.95,181.89,1.09937026]
[1722009615506,20.0,181.98,181.92,5.4968]
[1722009616008,20.0,181.98,181.93,5.4965]
[1722009616393,20.0,181.98,181.94,5.4962]
[1722009616707,20.0,181.98,181.86,1.09907311]
[1722009616916,20.0,181.98,181.93,5.4963]
[1722009617215,20.0,181.98,181.92,5.4968]
[1722009617507,6.373,181.99,181.91,0.17]
[1722009617707,6.373,181.99,181.93,5.4965]
[1722009618215,15.429,182.0,181.94,5.4961]
[1722009619009,5.4948,181.99,181.92,5.4966]
[1722009619211,1.37386016,181.99,181.91,0.17]
[1722009619413,15.429,182.0,181.91,1.26903036]
[1722009619590,15.429,182.0,181.94,5.4962]
[1722009619900,20.9235,182.0,181.93,5.4965]
[1722009620782,20.9235,182.0,181.91,0.17]
[1722009620783,5.4948,181.99,181.92,5.4968]
[1722009621587,5.4948,181.99,181.93,5.4966]
[1722009621782,5.4951,181.98,181.91,1.09902198]
[1722009622197,15.429,182.0,181.93,5.4966]
[1722009623085,20.9235,182.0,181.93,5.4966]
[1722009623493,5.4948,181.99,181.92,5.4966]
[1722009623882,6.86865616,181.99,181.93,5.4966]
[1722009624102,5.4952,181.98,181.9,2.2073418]
[1722009624337,5.4952,181.98,181.91,1.09918102]
[1722009624520,15.429,182.0,181.85,1.09917666]
[1722009624729,15.429,182.0,181.93,5.4965]
[1722009624887,20.9235,182.0,181.93,5.4965]
[1722009625210,15.429,182.0,181.94,6.59525864]
[1722009625523,20.9235,182.0,181.94,5.4962]
[1722009625827,20.9235,182.0,181.84,35.30611925]
[1722009625828,20.9235,182.0,181.93,5.4965]
[1722009627503,20.9235,182.0,181.94,5.4963]
[1722009628097,15.429,182.0,181.94,5.4963]
[1722009628893,15.429,182.0,181.95,0.17]
[1722009629103,15.429,182.0,181.97,5.4953]
[1722009629486,5.4933,182.04,181.97,5.4953]
[1722009629692,6.86715387,182.03,181.96,5.4956]
[1722009629892,5.4936,182.03,181.96,5.4956]
[1722009630900,1.37357857,182.06,181.95,0.17]
[1722009630901,5.4933,182.04,181.97,5.4953]
[1722009631208,6.86716487,182.03,181.96,5.4956]
[1722009631396,5.4936,182.03,181.96,5.4956]
[1722009631824,1.37358363,182.06,181.95,0.17]
[1722009632123,5.4941,182.02,181.95,5.4957]
[1722009632309,5.4935,182.04,181.96,5.4955]
[1722009632499,5.4935,182.04,181.97,5.4953]
[1722009632831,1.37364797,182.03,181.97,5.4953]
[1722009634026,5.4935,182.04,181.97,5.4953]
[1722009634897,5.4933,182.04,181.98,5.495]
[1722009636013,5.493,182.05,181.98,5.495]
[1722009636604,5.493,182.05,181.99,5.4947]
[1722009636809,5.493,182.05,181.98,5.495]
[1722009638522,6.86675738,182.04,181.98,5.495]
[1722009638700,5.4933,182.04,181.98,5.495]
[1722009639506,6.86645844,182.05,181.98,5.495]
[1722009640117,5.4936,182.03,181.96,5.4956]
[1722009640431,1.37356987,182.02,181.96,5.4956]
[1722009640723,1.37356987,182.02,181.97,5.4953]
[1722009640933,1.37356987,182.02,181.96,5.4956]
[1722009641134,5.4938,182.03,181.96,5.4956]
[1722009641422,15.2686,182.01,181.9,18.52689173]
[1722009641645,1.37381881,182.0,181.9,18.52689173]
[1722009642508,5.4949,181.99,181.9,2.16749173]
[1722009642724,1.37381881,182.0,181.87,1.0990529]
[1722009642915,1.37381881,182.0,181.94,5.4962]
[1722009643315,5.4945,182.0,181.93,5.4965]
[1722009643515,25.4945,182.0,181.93,5.4965]
[1722009644746,20.0,182.0,181.94,5.4962]
[1722009644918,20.0,182.0,181.95,5.496]
[1722009645319,20.0,182.0,181.94,5.4962]
[1722009645619,20.0,182.0,181.95,5.4959]
[1722009646626,1.37375852,181.99,181.94,5.4962]
[1722009646842,25.4945,182.0,181.94,5.4962]
[1722009647143,26.86835751,182.0,181.93,5.4965]
[1722009648121,25.4945,182.0,181.93,5.4965]
[1722009650538,25.4945,182.0,181.88,1.09900681]
[1722009650746,20.0,182.0,181.89,0.34]
[1722009650915,20.0,182.0,181.9,1.09903354]
[1722009651115,20.0,182.0,181.91,0.34]
[1722009651318,20.0,182.0,181.92,1.09903]
[1722009651725,20.0,182.0,181.94,5.4962]
[1722009652027,26.86830218,182.0,181.93,5.4965]
[1722009652630,26.86830218,182.0,181.94,5.4963]
[1722009652932,20.7628,182.01,181.94,5.4963]
[1722009653138,22.13660339,182.01,181.94,5.4963]
[1722009654025,20.7628,182.01,181.94,5.4963]
[1722009654226,5.4945,182.0,181.94,5.4963]
[1722009654558,20.7628,182.01,181.94,5.4963]
[1722009656865,5.495,181.99,181.91,1.43904349]
[1722009657156,5.495,181.99,181.91,0.34]
[1722009657463,5.495,181.99,181.91,1.43904692]
[1722009657623,5.4954,181.97,181.91,1.09904692]
[1722009657830,5.4951,181.98,181.91,5.4972]
[1722009658057,5.4951,181.98,181.92,1.0992044]
[1722009658285,5.4948,181.99,181.93,1.09920225]
[1722009658482,5.4952,181.98,181.93,1.09920225]
[1722009658792,15.2686,182.01,181.87,45.0]
[1722009658793,5.4955,181.97,181.9,5.4975]
[1722009658954,5.4951,181.98,181.91,5.4972]
[1722009660470,5.4954,181.97,181.9,5.4974]
[1722009660666,5.4951,181.98,181.91,5.4972]
[1722009661685,5.4954,181.97,181.89,1.2692343]
[1722009661862,5.4954,181.97,181.9,5.4974]
[1722009662866,5.4954,181.97,181.9,6.5966358]
[1722009663067,5.4951,181.98,181.91,5.4972]
[1722009664295,5.4954,181.97,181.91,5.4972]
[1722009664462,5.4954,181.97,181.9,5.4975]
[1722009664873,33.18264369,182.01,181.87,45.0]
[1722009665158,74.91319466,182.0,181.88,0.17]
[1722009665371,6.1899,181.95,181.87,0.17]
[1722009665595,17.98433319,181.94,181.87,0.17]
[1722009665892,17.98433319,181.94,181.88,5.498]
[1722009666060,16.6101,181.94,181.87,0.17]
[1722009666259,16.6101,181.94,181.89,5.4976]
[1722009667492,16.6101,181.94,181.88,5.498]
[1722009667967,16.6101,181.94,181.89,5.4977]
[1722009668464,16.6101,181.94,181.9,5.4974]
[1722009668662,16.6101,181.94,181.89,5.4978]
[1722009668863,16.6101,181.94,181.88,5.498]
[1722009669385,16.6101,181.94,181.89,0.17]
[1722009669577,16.6101,181.94,181.89,5.4977]
[1722009669775,16.6101,181.94,181.9,5.4974]
[1722009669979,16.6101,181.94,181.91,1.09929714]
[1722009670374,21.4739,181.98,181.91,6.59639714]
[1722009670568,20.0,181.97,181.92,1.09924149]
[1722009671088,25.4955,181.97,181.92,1.09924149]
[1722009671282,25.4955,181.97,181.87,1.26924258]
[1722009671488,25.4955,181.97,181.88,0.17]
[1722009671685,25.4955,181.97,181.88,1.26922022]
[1722009671888,25.4955,181.97,181.89,0.17]
[1722009672062,25.4955,181.97,181.9,5.4974]
[1722009672684,25.4955,181.97,181.91,1.09924126]
[1722009674669,15.9788,181.98,181.92,1.09919823]
[1722009674984,15.9788,181.98,181.92,5.4966]
[1722009675291,21.4739,181.98,181.92,5.4966]
[1722009675686,21.4739,181.98,181.9,5.4972]
[1722009675897,17.35269793,181.98,181.9,5.4972]
[1722009676080,5.4957,181.96,181.89,1.26923242]
[1722009676282,17.3528562,181.98,181.84,2.18182718]
[1722009676579,5.4959,181.96,181.88,5.4981]
[1722009676790,5.4959,181.96,181.89,6.59706478]
[1722009676973,5.4959,181.96,181.89,5.4977]
[1722009677168,5.4959,181.96,181.9,1.09936327]
[1722009678190,5.4957,181.96,181.9,1.09936394]
[1722009678979,5.496,181.95,181.9,1.09933749]
[1722009679194,5.496,181.95,181.88,5.4981]
[1722009679493,5.496,181.95,181.83,1.09933749]
[1722009679791,5.496,181.95,181.84,0.34]
[1722009680098,5.4957,181.96,181.89,5.4978]
[1722009680297,5.4957,181.96,181.9,1.09934309]
[1722009681496,5.4957,181.96,181.9,6.5967437]
[1722009681674,15.9788,181.98,181.84,1.43934294]
[1722009681874,21.4739,181.98,181.92,5.4966]
[1722009682068,22.84786354,181.98,181.91,5.4971]
[1722009683692,21.4739,181.98,181.91,5.4971]
[1722009684093,22.84785624,181.98,181.91,5.4971]
[1722009684288,15.9788,181.98,181.92,5.4968]
[1722009685804,21.4739,181.98,181.92,5.4968]
[1722009686000,22.8478558,181.98,181.9,5.6672]
[1722009686187,21.4739,181.98,181.9,5.6672]
[1722009686580,5.4954,181.97,181.9,5.6672]
[1722009686775,5.4954,181.97,181.9,5.6674]
[1722009687102,5.4954,181.97,181.91,5.4971]
[1722009687804,5.4954,181.97,181.9,5.4974]
[1722009688298,5.4954,181.97,181.91,5.4971]
[1722009688990,21.4739,181.98,181.92,1.09925902]
[1722009689376,15.9788,181.98,181.92,5.4967]
[1722009689587,1.37397087,181.97,181.92,5.4967]
[1722009689901,21.4739,181.98,181.92,5.4967]
[1722009690087,15.9788,181.98,181.92,5.4967]
[1722009690690,15.9788,181.98,181.93,6.59574472]
[1722009690897,15.9788,181.98,181.94,5.4962]
[1722009691279,15.9788,181.98,181.93,5.4965]
[1722009691501,17.35272246,181.98,181.93,5.4965]
[1722009693302,17.35272246,181.98,181.94,5.4963]
[1722009693506,15.9788,181.98,181.94,5.4963]
[1722009693704,17.35272462,181.98,181.94,5.4963]
[1722009693903,15.9788,181.98,181.93,5.4965]
[1722009695417,15.9788,181.98,181.95,5.4957]
[1722009695908,15.9788,181.98,181.94,5.4962]
[1722009696411,15.9788,181.98,181.88,1.09907027]
[1722009696615,15.9788,181.98,181.94,5.4962]
[1722009696783,15.9788,181.98,181.89,0.34]
[1722009696784,15.9788,181.98,181.89,1.09907663]
[1722009696984,5.4955,181.97,181.9,5.4972]
[1722009697188,21.4739,181.98,181.91,6.59647355]
[1722009697387,15.9788,181.98,181.92,5.4968]
[1722009697804,15.9788,181.98,181.93,5.4965]
[1722009698011,21.4739,181.98,181.9,5.4972]
[1722009698307,15.9788,181.98,181.93,5.4965]
[1722009698989,15.9788,181.98,181.94,5.4962]
[1722009699388,15.9788,181.98,181.92,5.4966]
[1722009699588,15.9788,181.98,181.87,1.09906913]
[1722009699813,21.4741,181.98,181.92,5.4968]
[1722009700307,15.9788,181.98,181.93,5.4965]
[1722009702313,15.9788,181.98,181.94,1.09911658]
[1722009703290,17.35269745,181.98,181.93,5.4965]
[1722009706006,15.9788,181.98,181.93,5.4965]
[1722009706403,15.9788,181.98,181.92,5.4968]
[1722009706611,1.37390949,181.97,181.92,5.4968]
[1722009706803,15.9788,181.98,181.92,5.4968]
[1722009706998,1.37403383,181.97,181.92,5.4968]
[1722009707313,15.9788,181.98,181.93,5.4965]
[1722009707919,17.35277693,181.98,181.93,5.4965]
[1722009708708,15.9788,181.98,181.93,5.4965]
[1722009709816,21.4739,181.98,181.91,5.4969]
[1722009710011,21.4739,181.98,181.92,5.4968]
[1722009710214,15.9788,181.98,181.92,5.4968]
[1722009710412,15.9788,181.98,181.93,5.4963]
[1722009716422,15.9788,181.98,181.88,1.09920731]
[1722009716606,15.9788,181.98,181.89,1.43908074]
[1722009716924,15.9788,181.98,181.9,1.09908412]
[1722009717224,15.9788,181.98,181.91,0.34]
[1722009717403,15.9788,181.98,181.94,5.4962]
[1722009717603,15.9788,181.98,181.95,1.09908906]
[1722009718217,16.1133,182.02,181.97,5.4954]
[1722009718611,16.1133,182.02,181.96,5.4956]
[1722009718808,16.1133,182.02,181.97,1.09896174]
[1722009720426,17.48696841,182.02,181.96,5.4956]
[1722009720808,16.1133,182.02,181.97,5.4953]
[1722009721225,1.37363304,182.01,181.96,5.4956]
[1722009721430,5.4943,182.01,181.94,5.4962]
[1722009721912,5.4948,181.99,181.93,5.4965]
[1722009722225,5.4945,182.0,181.93,5.4965]
[1722009722424,1.37386905,181.99,181.93,5.4965]
[1722009722632,5.4951,181.98,181.88,1.09919359]
[1722009722937,46.378,182.02,181.9,5.4972]
[1722009722938,15.3232,181.96,181.9,5.4972]
[1722009723219,15.3232,181.96,181.91,5.4971]
[1722009723432,15.3232,181.96,181.92,5.4969]
[1722009723614,15.3232,181.96,181.93,5.4966]
[1722009724207,15.3232,181.96,181.86,1.09930567]
[1722009724515,15.3232,181.96,181.93,5.4964]
[1722009724920,15.3232,181.96,181.92,5.4968]
[1722009725227,15.3232,181.96,181.93,5.4965]
[1722009726334,15.3232,181.96,181.87,1.43918608]
[1722009726335,15.3232,181.96,181.94,5.4962]
[1722009726627,15.3232,181.96,181.93,5.4966]
[1722009729135,20.8642,182.0,181.93,5.4966]
[1722009729315,20.8642,182.0,181.94,5.4962]
[1722009729836,15.3697,182.0,181.94,5.4962]
[1722009730637,20.8643,182.0,181.94,5.4962]
[1722009731220,20.8643,182.0,181.93,5.4965]
[1722009731635,20.8643,182.0,181.94,1.0990833]
[1722009732625,20.8643,182.0,181.93,5.4965]
[1722009733631,15.3697,182.0,181.92,0.17]
[1722009733930,5.4953,181.98,181.92,0.17]
[1722009734324,20.8642,182.0,181.93,5.4964]
[1722009734525,20.8642,182.0,181.94,5.4962]
[1722009734722,22.23805078,182.0,181.94,5.4962]
[1722009734939,5.4948,181.99,181.93,5.4966]
[1722009735336,1.37389799,181.99,181.93,5.4966]
[1722009736023,5.4951,181.98,181.92,5.6668]
[1722009736214,20.8644,182.0,181.93,1.09923181]
[1722009736421,20.8644,182.0,181.94,5.4962]
[1722009736621,20.8644,182.0,181.93,5.4965]
[1722009737534,15.3697,182.0,181.95,5.4959]
[1722009737743,15.3697,182.0,181.87,0.17]
[1722009737927,15.3697,182.0,181.88,1.09911393]
[1722009738241,15.3697,182.0,181.89,0.34]
[1722009738641,15.3697,182.0,181.94,5.4962]
[1722009739232,15.3697,182.0,181.95,5.4959]
[1722009739543,15.3697,182.0,181.96,1.09908521]
[1722009739837,15.3697,182.0,181.89,0.34]
[1722009739838,20.8642,182.0,181.89,0.34]
[1722009740038,1.37395547,181.99,181.89,0.34]
[1722009740245,15.3697,182.0,181.89,0.34]
[1722009740444,22.23815727,182.0,181.94,5.4962]
[1722009740845,5.4948,181.99,181.91,5.4969]
[1722009741028,5.4948,181.99,181.92,5.4967]
[1722009741737,20.8642,182.0,181.93,5.4966]
[1722009743552,5.4948,181.99,181.92,5.4968]
[1722009743930,20.8642,182.0,181.93,5.4965]
[1722009744330,5.4948,181.99,181.93,5.4965]
[1722009745247,5.4959,181.96,181.84,5.70466035]
[1722009745553,26.86956213,181.98,181.9,5.4972]
[1722009745856,25.4953,181.98,181.91,5.4971]
[1722009746235,20.0,181.98,181.92,5.4969]
[1722009748866,15.3697,182.0,181.86,1.09930754]
[1722009749036,15.3697,182.0,181.87,6.8238]
[1722009749350,1.37372834,181.99,181.94,5.4962]
[1722009749530,1.37391204,181.98,181.94,5.4962]
[1722009749943,15.3697,182.0,181.95,5.4959]
[1722009750359,16.74352926,182.0,181.95,5.4959]
[1722009751235,15.3697,182.0,181.95,5.4959]
[1722009752839,5.4953,181.98,181.91,5.4971]
[1722009754250,20.8644,182.0,181.92,5.4968]
[1722009754556,16.74355576,182.0,181.94,5.4961]
[1722009754940,15.3697,182.0,181.86,1.09908596]
[1722009755141,15.3697,182.0,181.87,0.34]
[1722009755362,15.3697,182.0,181.87,1.43918783]
[1722009756054,5.4948,181.99,181.92,5.4966]
[1722009757080,15.3697,182.0,181.87,1.43918783]
[1722009757081,5.4951,181.98,181.87,1.43918783]
[1722009757241,1.37416127,181.97,181.85,5.70918179]
[1722009757451,5.4951,181.98,181.91,5.4969]
[1722009757944,6.86926075,181.98,181.91,5.4969]
[1722009758462,5.4951,181.98,181.91,5.4969]
[1722009758762,20.8644,182.0,181.93,5.4965]
[1722009763664,15.3697,182.0,181.86,1.0993282]
[1722009763970,15.3697,182.0,181.87,0.34]
[1722009764153,15.3697,182.0,181.88,1.09928972]
[1722009764347,5.4962,181.95,181.88,5.498]
[1722009764668,15.2685,181.93,181.89,5.4978]
[1722009764875,15.2685,181.93,181.85,5.69614857]
[1722009764876,1.37430603,181.92,181.85,5.69614857]
[1722009765049,7.45320603,181.92,181.88,5.4981]
[1722009765468,6.0789,181.92,181.9,5.4974]
[1722009765657,6.0789,181.92,181.91,5.4972]
[1722009766273,6.4408,181.97,181.93,5.4965]
[1722009768158,6.4408,181.97,181.92,5.4969]
[1722009769574,6.4408,181.97,181.93,5.4965]
[1722009770149,6.4408,181.97,181.92,5.4968]
[1722009770571,6.4408,181.97,181.84,1.0992089]
[1722009770782,6.4408,181.97,181.85,0.34]
[1722009770966,6.4408,181.97,181.86,1.09921443]
[1722009771157,6.4408,181.97,181.92,5.4966]
[1722009772197,6.4408,181.97,181.93,1.09921524]
[1722009772379,6.4408,181.97,181.93,6.59571524]
[1722009772563,6.4408,181.97,181.93,5.4965]
[1722009774096,6.4408,181.97,181.92,5.4968]
[1722009775516,6.4408,181.97,181.93,5.6664]
[1722009775666,6.4408,181.97,181.94,5.4961]
[1722009779875,6.4408,181.97,181.96,5.4957]
[1722009780069,6.4408,181.97,181.91,0.17]
[1722009780271,6.4408,181.97,181.94,5.496]
[1722009781183,6.4408,181.97,181.96,5.4957]
[1722009781517,6.4408,181.97,181.91,0.17]
[1722009781788,16.5957,181.98,181.91,0.17]
[1722009781997,16.5957,181.98,181.94,5.496]
[1722009782199,16.5957,181.98,181.93,5.4965]
[1722009783609,16.5957,181.98,181.94,5.4962]
[1722009784474,16.5957,181.98,181.95,1.09914918]
[1722009784686,16.5957,181.98,181.91,1.09909317]
[1722009784991,16.5957,181.98,181.92,0.34]
[1722009785366,16.5957,181.98,181.95,5.4957]
[1722009787793,16.5957,181.98,181.94,5.4962]
[1722009788797,16.5957,181.98,181.93,5.4965]
[1722009788995,16.5957,181.98,181.94,5.4963]
[1722009789295,1.37387564,181.97,181.92,0.17]
[1722009789472,1.37387564,181.97,181.91,5.4971]
[1722009790082,1.37387564,181.97,181.92,5.4968]
[1722009790283,6.349,181.96,181.85,2.16990972]
[1722009790482,6.349,181.96,181.81,22.91495084]
[1722009790483,1.37427674,181.95,181.81,22.91495084]
[1722009790683,6.349,181.96,181.91,5.4972]
[1722009791086,6.349,181.96,181.84,1.09942451]
[1722009791297,11.8448,181.96,181.84,1.09942451]
[1722009791600,6.349,181.96,181.9,5.4973]
[1722009791982,6.349,181.96,181.91,5.4971]
[1722009792514,6.349,181.96,181.92,5.4968]
[1722009794279,6.349,181.96,181.93,5.4965]
[1722009794682,6.349,181.96,181.84,1.09939844]
[1722009794907,6.349,181.96,181.85,0.34]
[1722009795207,16.5957,181.98,181.95,5.496]
[1722009795906,16.5957,181.98,181.94,5.4962]
[1722009798185,16.5957,181.98,181.95,5.4959]
[1722009798800,16.5957,181.98,181.96,5.4955]
[1722009799027,16.0917,182.02,181.97,0.17]
[1722009799204,16.0917,182.02,181.98,5.4948]
[1722009799409,16.0917,182.02,181.95,0.17]
[1722009800213,16.0917,182.02,181.95,5.6657]
[1722009800529,1.37372094,182.01,181.95,5.4957]
[1722009800727,16.0917,182.02,181.94,0.17]
[1722009800889,5.4942,182.01,181.94,5.496]
[1722009801284,21.5856,182.02,181.95,5.496]
[1722009801516,5.4942,182.01,181.95,5.496]
[1722009801717,21.5856,182.02,181.95,5.496]
[1722009802608,1.37383639,182.01,181.95,5.496]
[1722009803396,21.5856,182.02,181.95,5.496]
[1722009803716,1.37383733,182.01,181.92,5.4967]
[1722009803918,5.4964,181.94,181.84,5.66895415]
[1722009804088,5.497,181.92,181.85,5.4989]
[1722009804290,1.37452752,181.91,181.81,272.2186]
[1722009804565,1.37452752,181.91,181.86,5.4987]
[1722009805399,6.1797,181.92,181.87,5.4983]
[1722009805605,6.1797,181.92,181.88,5.498]
[1722009806503,1.37445255,181.91,181.8,1.09962173]
[1722009806687,1.37445255,181.91,181.86,5.4986]
[1722009808015,1.37445255,181.91,181.87,5.4983]
[1722009808431,1.37445255,181.91,181.86,5.4986]
[1722009808814,1.37445255,181.91,181.84,5.499]
[1722009809224,6.87165255,181.91,181.84,5.499]
[1722009809425,6.1797,181.92,181.78,3.26276907]
[1722009809750,5.4973,181.91,181.78,1.09975487]
[1722009810832,5.4973,181.91,181.79,0.34]
[1722009811022,5.4973,181.91,181.85,5.499]
[1722009811217,6.1797,181.92,181.81,1.0997463]
[1722009811432,6.1797,181.92,181.82,0.34]
[1722009811632,6.1797,181.92,181.83,1.09962585]
[1722009811837,6.1797,181.92,181.86,5.4987]
[1722009812446,6.1797,181.92,181.84,5.669]
[1722009812750,6.1797,181.92,181.85,5.4989]
[1722009813116,11.6766,181.92,181.85,5.4989]
[1722009815220,11.6766,181.92,181.86,1.09963987]
[1722009815423,11.6766,181.92,181.85,5.4989]
[1722009815624,6.87176127,181.91,181.84,5.8392]
[1722009815835,1.37446127,181.91,181.84,5.6692]
[1722009816031,5.4975,181.9,181.84,5.6692]
[1722009816231,6.87235973,181.89,181.83,5.4996]
[1722009817127,1.37455973,181.89,181.83,5.4996]
[1722009817453,5.4976,181.9,181.84,5.4993]
[1722009817657,5.4972,181.91,181.84,5.4993]
[1722009818158,5.4975,181.9,181.84,5.4993]
[1722009818456,1.3746621,181.89,181.84,5.4993]
[1722009818640,5.4975,181.9,181.84,5.4993]
[1722009819597,5.4975,181.9,181.83,5.4995]
[1722009819854,20.8648,181.88,181.82,5.4996]
[1722009820025,12.1214,181.86,181.79,5.5008]